fUSD/lending_fUSD_20250828
["ID","MTS","AMOUNT","RATE_DAILY","PERIOD"]
[381900323,1756396269618,-400.0,0.00042191,120]
[381900324,1756396269628,-390.95,0.00042191,120]
[381900325,1756396269638,-400.0,0.00042191,120]
[381900326,1756396269647,-400.0,0.00042191,120]
[381900327,1756396269656,-400.0,0.00042191,120]
[381900328,1756396269666,-350.0,0.00042192,10]
[381900329,1756396269675,-500.0,0.00042192,2]
[381900330,1756396269685,-720.0,0.00042192,2]
[381900331,1756396269694,-150.0,0.00042369,120]
[381900332,1756396269704,-727.44,0.000424,14]
[381900333,1756396269714,-1173.8,0.000424,30]
[381900334,1756396269723,-400.0,0.00042465,120]
[381900335,1756396269732,-400.0,0.00042465,120]
[381900336,1756396269742,-400.0,0.00042465,120]
[381900337,1756396269751,-400.0,0.00042465,120]
[381900338,1756396269762,-419.7,0.00042465,120]
[381900339,1756396269772,-183.4,0.00042465,120]
[381900340,1756396269781,-450.1,0.00042465,120]
[381900341,1756396269791,-368.95,0.00042465,120]
[381900342,1756396269801,-400.0,0.00042465,120]
[381900343,1756396269811,-158.6,0.00042465,120]
[381900344,1756396269824,-444.7,0.00042465,120]
[381900345,1756396269836,-400.0,0.00042465,120]
[381900346,1756396269845,-400.0,0.00042465,120]
[381900347,1756396269857,-400.0,0.00042465,120]
[381900348,1756396269867,-400.0,0.00042465,120]
[381900349,1756396269878,-400.0,0.00042465,120]
[381900350,1756396269887,-400.0,0.00042465,120]
[381900351,1756396269899,-400.0,0.00042465,120]
[381900352,1756396269909,-400.0,0.00042465,120]
[381900353,1756396269919,-400.0,0.00042465,120]
[381900354,1756396269929,-400.0,0.00042465,120]
[381900355,1756396269940,-597.41,0.00042465,120]
[381900356,1756396269950,-400.0,0.00042465,120]
[381900357,1756396269961,-400.0,0.00042465,120]
[381900358,1756396269971,-400.0,0.00042465,120]
[381900359,1756396269980,-400.0,0.00042465,120]
[381900360,1756396269991,-400.0,0.00042465,120]
[381900361,1756396270001,-1183.29,0.00042465,120]
[381900362,1756396270012,-400.0,0.00042465,120]
[381900363,1756396270021,-400.0,0.00042465,120]
[381900364,1756396270031,-400.0,0.00042465,120]
[381900365,1756396270042,-400.0,0.00042465,120]
[381900366,1756396270051,-400.0,0.00042465,120]
[381900367,1756396270061,-400.0,0.00042465,120]
[381900368,1756396270071,-400.0,0.00042465,120]
[381900369,1756396270080,-400.0,0.00042465,120]
[381900370,1756396270090,-400.0,0.00042465,120]
[381900371,1756396270099,-400.0,0.00042465,120]
[381900372,1756396270109,-400.0,0.00042465,120]
[381900373,1756396270119,-400.0,0.00042465,120]
[381900374,1756396270129,-400.0,0.00042465,120]
[381900375,1756396270139,-400.0,0.00042465,120]
[381900376,1756396270149,-400.0,0.00042465,120]
[381900377,1756396270158,-400.0,0.00042465,120]
[381900378,1756396270167,-400.0,0.00042465,120]
[381900379,1756396270177,-400.0,0.00042465,120]
[381900380,1756396270187,-400.0,0.00042465,120]
[381900381,1756396270196,-400.0,0.00042465,120]
[381900382,1756396270206,-500.0,0.00042466,2]
[381900383,1756396270215,-720.0,0.00042466,2]
[381900384,1756396270225,-1000.0,0.000425,2]
[381900385,1756396270235,-150.0,0.0004261,120]
[381900386,1756396270245,-1172.88,0.00042719,120]
[381900387,1756396270256,-400.0,0.00042739,120]
[381900388,1756396270265,-400.0,0.00042739,120]
[381900389,1756396270275,-400.0,0.00042739,120]
[381900390,1756396270285,-400.0,0.00042739,120]
[381900391,1756396270295,-400.0,0.00042739,120]
[381900392,1756396270304,-400.0,0.00042739,120]
[381900393,1756396270313,-400.0,0.00042739,120]
[381900394,1756396270323,-400.0,0.00042739,120]
[381900395,1756396270333,-400.0,0.00042739,120]
[381900396,1756396270343,-400.0,0.00042739,120]
[381900397,1756396270352,-489.56,0.00042739,120]
[381900398,1756396270362,-400.0,0.00042739,120]
[381900399,1756396270372,-400.0,0.00042739,120]
[381900400,1756396270382,-400.0,0.00042739,120]
[381900401,1756396270391,-400.0,0.00042739,120]
[381900402,1756396270401,-597.41,0.00042739,120]
[381900403,1756396270411,-283.3,0.00042739,120]
[381900404,1756396270420,-400.0,0.00042739,120]
[381900405,1756396270429,-400.0,0.00042739,120]
[381900406,1756396270439,-400.0,0.00042739,120]
[381900407,1756396270448,-400.0,0.00042739,120]
[381900408,1756396270458,-1183.29,0.00042739,120]
[381900409,1756396270468,-400.0,0.00042739,120]
[381900410,1756396270478,-400.0,0.00042739,120]
[381900411,1756396270487,-449.48,0.00042739,120]
[381900412,1756396270497,-400.0,0.00042739,120]
[381900413,1756396270509,-400.0,0.00042739,120]
[381900414,1756396270518,-400.0,0.00042739,120]
[381900415,1756396270528,-400.0,0.00042739,120]
[381900416,1756396270538,-428.28,0.00042739,120]
[381900417,1756396270548,-400.0,0.00042739,120]
[381900418,1756396270558,-400.0,0.00042739,120]
[381900419,1756396270568,-400.0,0.00042739,120]
[381900420,1756396270579,-400.0,0.00042739,120]
[381900421,1756396270588,-400.0,0.00042739,120]
[381900422,1756396270600,-400.0,0.00042739,120]
[381900423,1756396270610,-400.0,0.00042739,120]
[381900424,1756396270620,-400.0,0.00042739,120]
[381900425,1756396270630,-400.0,0.00042739,120]
[381900426,1756396270639,-400.0,0.00042739,120]
[381900427,1756396270649,-400.0,0.00042739,120]
[381900428,1756396270659,-400.0,0.00042739,120]
[381900429,1756396270669,-450.0,0.0004274,10]
[381900430,1756396270679,-500.0,0.0004274,2]
[381900431,1756396270688,-720.0,0.0004274,2]
[381900432,1756396270698,-15000.0,0.000428,90]
[381900433,1756396270708,-822.65897759,0.00042801,30]
[381900434,1756396270717,-6241.9048239,0.00042803,60]
[381900435,1756396270727,-214.0,0.000429,2]
[381900436,1756396270737,-1600.0,0.000429,15]
[381900437,1756396270746,-21764.67,0.00042935,90]
[381900438,1756396270758,-500.0,0.00042937,3]
[381900439,1756396270768,-1221.0,0.0004298,14]
[381900440,1756396270778,-50000.0,0.00043,43]
[381900441,1756396270788,-50000.0,0.00043,53]
[381900442,1756396270797,-344.899999,0.00043,24]
[381900443,1756396270806,-10000.0,0.00043,120]
[381900444,1756396270817,-186.21,0.00043,120]
[381900445,1756396270827,-4343.4343,0.00043,3]
[381900446,1756396270838,-1274.13482302,0.00043,120]
[381900447,1756396270847,-310.08438352,0.00043,30]
[381900448,1756396270957,-2277.27499999,0.00043,30]
[381900450,1756396317882,499.9,0.00030136,120]
[381900454,1756396455752,1560.45587079,0.00030137,120]
[381900457,1756396467951,167.30514754,0.00030136,120]
[381900461,1756396480236,200.0,0.00030137,120]
[381900483,1756397178265,154.04,0.00013699,2]
[381900531,1756397431946,-550.0,0.00017998,2]
[381900532,1756397431956,-300.0,0.00017998,2]
[381900533,1756397431966,-300.0,0.00017998,2]
[381900534,1756397431975,-1200.0,0.00017998,2]
[381900535,1756397431985,-500.0,0.00017999,2]
[381900536,1756397431994,-500.0,0.00017999,2]
[381900537,1756397432003,-297.72842676,0.00017999,2]
[381900538,1756397432015,-65.30168419,0.00017999,2]
[381900539,1756397432026,-434.69831581,0.00017999,2]
[381900540,1756397432035,-260.80274277,0.00017999,2]
[381900541,1756397432044,-202.13574068,0.00017999,2]
[381900542,1756397432235,-359.25570131,0.00017999,2]
[381900543,1756397432245,-577.0066143,0.00017999,2]
[381900544,1756397432254,-32.92955483,0.00017999,2]
[381900545,1756397432306,-211.61029533,0.00019181,2]
[381900546,1756397432315,-100.52460253,0.00019592,2]
[381900547,1756397432327,-1099.47539747,0.00019592,2]
[381900548,1756397432336,-251.0,0.000198,2]
[381900549,1756397432346,-1433.74,0.000249,2]
[381900550,1756397432355,-150.99,0.000249,2]
[381900551,1756397432365,-370.11078236,0.000249,2]
[381900552,1756397432374,-1018.56,0.00026,2]
[381900553,1756397432384,-500.0,0.00026514,2]
[381900554,1756397432393,-500.0,0.00026514,2]
[381900555,1756397432403,-500.0,0.00026514,2]
[381900556,1756397432412,-371.50509089,0.00026514,2]
[381900557,1756397432422,-500.0,0.00026514,2]
[381900558,1756397432431,-500.0,0.00026514,2]
[381900559,1756397432441,-500.0,0.0002676,2]
[381900560,1756397432450,-531.3134,0.00027137,2]
[381900561,1756397432459,-343.1666302,0.000273,2]
[381900562,1756397432469,-154.04,0.00027397,2]
[381900563,1756397432478,-151.30999316,0.00027397,5]
[381900564,1756397432487,-500.0,0.00027533,5]
[381900565,1756397432497,-500.0,0.00027533,3]
[381900566,1756397432507,-501.21214153,0.00027533,5]
[381900567,1756397432517,-500.0,0.00027533,5]
[381900568,1756397432527,-500.0,0.00027763,5]
[381900569,1756397432536,-264.43987125,0.00027999,2]
[381900570,1756397432546,-225.37487686,0.00027999,2]
[381900571,1756397432556,-312.41865576,0.00027999,2]
[381900572,1756397432566,-161.26,0.00028,14]
[381900573,1756397432576,-181.906,0.00028,18]
[381900574,1756397432585,-1124.243,0.00028,18]
[381900575,1756397432595,-500.0,0.00029192,5]
[381900576,1756397432604,-514.17478768,0.00029192,5]
[381900577,1756397432614,-500.87000414,0.00029192,5]
[381900578,1756397432623,-500.69409659,0.0002976,5]
[381900579,1756397432632,-107.92465831,0.00029967,5]
[381900580,1756397432645,-393.01226904,0.00029967,5]
[381900581,1756397432655,-500.0,0.00029967,2]
[381900582,1756397432665,-159.55741954,0.00029967,5]
[381900583,1756397432675,-327.44063252,0.00029967,5]
[381900584,1756397432684,-500.70659059,0.00029967,5]
[381900585,1756397432694,-500.0,0.00029967,5]
[381900586,1756397432703,-500.0,0.00029967,5]
[381900587,1756397432713,-566.54497669,0.00029967,5]
[381900588,1756397432723,-1474.0,0.0003,10]
[381900589,1756397432732,-2500.0,0.00030005,7]
[381900590,1756397432742,-2500.0,0.00030014,7]
[381900591,1756397432752,-2500.0,0.00030023,7]
[381900592,1756397432764,-2500.0,0.00030031,7]
[381900593,1756397432774,-2500.0,0.0003004,7]
[381900594,1756397432784,-156.83373004,0.00030048,2]
[381900596,1756397432794,-2500.0,0.00030049,7]
[381900598,1756397432803,-26615.72996095,0.00030057,2]
[381900599,1756397432813,-2500.0,0.00030058,7]
[381900601,1756397432823,-2500.0,0.00030067,7]
[381900603,1756397432833,-2500.0,0.00030075,7]
[381900605,1756397432843,-2500.0,0.00030084,7]
[381900607,1756397432852,-2500.0,0.00030093,7]
[381900609,1756397432862,-2500.0,0.00030102,7]
[381900610,1756397432871,-2500.0,0.00030111,7]
[381900612,1756397432881,-2500.0,0.00030119,7]
[381900614,1756397432890,-2500.0,0.00030128,7]
[381900616,1756397432899,-2500.0,0.00030137,7]
[381900618,1756397432908,-2500.0,0.00030137,7]
[381900620,1756397432918,-370.11078236,0.00030857,15]
[381900622,1756397432928,-5000.0,0.00031566,2]
[381900624,1756397432937,-179.7,0.00031866,120]
[381900626,1756397432947,-8890.68,0.00032156,2]
[381900628,1756397432956,-150.0,0.00032307,120]
[381900630,1756397432965,-1433.0,0.00032367,2]
[381900632,1756397432975,-1000.0,0.00032516,2]
[381900634,1756397432984,-185.23,0.00032578,2]
[381900636,1756397432993,-150.0,0.00032689,120]
[381900638,1756397433003,-1433.0,0.00032701,2]
[381900640,1756397433015,-160.0,0.00032727,7]
[381900641,1756397433024,-1433.0,0.00033035,2]
[381900642,1756397433034,-1433.0,0.00033368,2]
[381900643,1756397433044,-441.06573826,0.00033368,2]
[381900644,1756397433053,-500.0,0.00033552,2]
[381900645,1756397433062,-500.0,0.00033552,2]
[381900646,1756397433071,-500.0,0.00033552,2]
[381900647,1756397433080,-500.0,0.00033552,2]
[381900648,1756397433090,-500.0,0.00033552,2]
[381900649,1756397433099,-500.0,0.00033552,2]
[381900650,1756397433109,-500.0,0.00033552,2]
[381900651,1756397433119,-500.0,0.00033552,2]
[381900652,1756397433134,-500.0,0.00033552,2]
[381900653,1756397433143,-500.0,0.00033552,2]
[381900654,1756397433153,-500.0,0.00033552,2]
[381900655,1756397433163,-157.37098226,0.00033552,2]
[381900656,1756397433176,-935.0,0.00033552,120]
[381900657,1756397433186,-1433.0,0.00033702,2]
[381900658,1756397433196,-153.0,0.00034029,30]
[381900659,1756397433207,-153.0,0.00034029,30]
[381900660,1756397433217,-153.0,0.00034029,30]
[381900661,1756397433227,-153.0,0.00034029,30]
[381900662,1756397433236,-153.0,0.0003403,30]
[381900663,1756397433246,-153.0,0.0003403,30]
[381900664,1756397433257,-153.0,0.0003403,30]
[381900665,1756397433267,-153.0,0.0003403,30]
[381900666,1756397433276,-153.0,0.0003403,30]
[381900668,1756397433285,-153.0,0.0003403,30]
[381900669,1756397433296,-153.0,0.0003403,30]
[381900670,1756397433305,-153.0,0.0003403,30]
[381900672,1756397433315,-153.0,0.0003403,30]
[381900674,1756397433324,-153.0,0.0003403,30]
[381900676,1756397433334,-153.0,0.0003403,30]
[381900678,1756397433343,-153.0,0.0003403,30]
[381900680,1756397433353,-153.0,0.0003403,30]
[381900682,1756397433363,-153.0,0.0003403,30]
[381900684,1756397433372,-153.0,0.0003403,30]
[381900686,1756397433383,-153.0,0.0003403,30]
[381900688,1756397433393,-153.0,0.0003403,30]
[381900690,1756397433403,-153.0,0.0003403,30]
[381900692,1756397433412,-153.0,0.0003403,30]
[381900694,1756397433422,-153.0,0.0003403,30]
[381900696,1756397433432,-153.0,0.0003403,30]
[381900698,1756397433442,-153.0,0.0003403,30]
[381900700,1756397433453,-153.0,0.0003403,30]
[381900702,1756397433463,-153.0,0.0003403,30]
[381900704,1756397433473,-153.0,0.0003403,30]
[381900706,1756397433484,-1433.0,0.00034036,2]
[381900708,1756397433494,-672.52,0.00034335,7]
[381900710,1756397433504,-1433.0,0.00034369,2]
[381900712,1756397433515,-204.0,0.00035,90]
[381900714,1756397433525,-2543.0,0.00035,120]
[381900716,1756397433535,-396.76451,0.00035888,30]
[381900718,1756397433545,-204.0,0.00036,120]
[381900720,1756397433555,-396.76451,0.00036088,30]
[381900722,1756397433565,-396.76451,0.00036288,30]
[381900724,1756397433575,-396.76451,0.00036488,30]
[381900726,1756397433585,-1000.0,0.0003658,2]
[381900728,1756397433595,-396.76451,0.00036688,30]
[381900730,1756397433605,-1322.5483,0.00036888,7]
[381900732,1756397433615,-396.76451,0.00036888,30]
[381900734,1756397433625,-2543.0,0.00037,120]
[381900736,1756397433636,-396.76451,0.00037088,30]
[381900737,1756397433646,-155.12985476,0.000372,120]
[381900738,1756397433656,-396.76451,0.00037288,30]
[381900739,1756397433667,-280.0,0.000374,30]
[381900740,1756397433677,-396.76451,0.00037488,30]
[381900741,1756397433687,-396.76451,0.00037688,30]
[381900742,1756397433697,-396.76451,0.00037888,30]
[381900743,1756397433707,-396.76451,0.00038088,30]
[381900744,1756397433720,-396.76451,0.00038288,30]
[381900745,1756397433731,-355.0,0.00038356,7]
[381900746,1756397433741,-236.14,0.00038356,7]
[381900747,1756397433751,-400.0,0.00038356,7]
[381900748,1756397433762,-313.54,0.00038356,7]
[381900749,1756397433773,-400.0,0.00038356,7]
[381900750,1756397433783,-400.0,0.00038356,7]
[381900751,1756397433793,-400.0,0.00038356,7]
[381900752,1756397433803,-400.0,0.00038356,7]
[381900753,1756397433814,-400.0,0.00038356,7]
[381900754,1756397433824,-400.0,0.00038356,7]
[381900755,1756397433835,-400.0,0.00038356,7]
[381900756,1756397433845,-400.0,0.00038356,7]
[381900757,1756397433855,-400.0,0.00038356,7]
[381900758,1756397433865,-400.0,0.00038356,7]
[381900759,1756397433875,-400.0,0.00038356,7]
[381900760,1756397433884,-400.0,0.00038356,7]
[381900761,1756397433894,-400.0,0.00038356,7]
[381900762,1756397433904,-400.0,0.00038356,7]
[381900763,1756397433914,-400.0,0.00038356,7]
[381900764,1756397433924,-400.0,0.00038356,7]
[381900765,1756397433935,-400.0,0.00038356,7]
[381900766,1756397433946,-400.0,0.00038356,7]
[381900767,1756397433956,-400.0,0.00038356,7]
[381900768,1756397433966,-400.0,0.00038356,7]
[381900769,1756397433977,-500.0,0.00038356,7]
[381900770,1756397433987,-500.0,0.00038356,7]
[381900771,1756397433997,-500.0,0.00038356,7]
[381900772,1756397434007,-500.0,0.00038356,7]
[381900773,1756397434017,-500.0,0.00038356,7]
[381900774,1756397434027,-500.0,0.00038356,7]
[381900775,1756397434036,-500.0,0.00038356,7]
[381900776,1756397434046,-400.0,0.00038356,7]
[381900777,1756397434056,-396.76451,0.00038488,30]
[381900778,1756397434066,-763.0,0.00038629,5]
[381900779,1756397434076,-500.0,0.00038629,7]
[381900780,1756397434085,-400.0,0.0003863,7]
[381900781,1756397434095,-400.0,0.0003863,7]
[381900782,1756397434106,-400.0,0.0003863,7]
[381900783,1756397434116,-400.0,0.0003863,7]
[381900784,1756397434127,-400.0,0.0003863,7]
[381900785,1756397434141,-400.0,0.0003863,7]
[381900786,1756397434152,-400.0,0.0003863,7]
[381900787,1756397434162,-400.0,0.0003863,7]
[381900788,1756397434172,-400.0,0.0003863,7]
[381900789,1756397434183,-400.0,0.0003863,7]
[381900790,1756397434193,-400.0,0.0003863,7]
[381900791,1756397434203,-400.0,0.0003863,7]
[381900792,1756397434215,-400.0,0.0003863,7]
[381900793,1756397434225,-400.0,0.0003863,7]
[381900794,1756397434236,-400.0,0.0003863,7]
[381900795,1756397434246,-400.0,0.0003863,7]
[381900796,1756397434256,-400.0,0.0003863,7]
[381900797,1756397434267,-400.0,0.0003863,7]
[381900798,1756397434277,-400.0,0.0003863,7]
[381900799,1756397434287,-400.0,0.0003863,7]
[381900800,1756397434297,-400.0,0.0003863,7]
[381900801,1756397434307,-400.0,0.0003863,7]
[381900802,1756397434317,-396.76451,0.00038688,30]
[381900803,1756397434327,-500.0,0.00038903,7]
[381900804,1756397434336,-400.0,0.00038904,7]
[381900805,1756397434346,-196.04,0.00038904,7]
[381900806,1756397434356,-400.0,0.00038904,7]
[381900807,1756397434366,-268.98,0.00038904,7]
[381900808,1756397434376,-400.0,0.00038904,7]
[381900809,1756397434387,-400.0,0.00038904,7]
[381900810,1756397434397,-400.0,0.00038904,7]
[381900811,1756397434407,-400.0,0.00038904,7]
[381900812,1756397434418,-361.38,0.00038904,7]
[381900813,1756397434427,-400.0,0.00038904,7]
[381900814,1756397434437,-391.83,0.00038904,7]
[381900815,1756397434447,-400.0,0.00038904,7]
[381900816,1756397434458,-400.0,0.00038904,7]
[381900817,1756397434468,-490.51,0.00038904,7]
[381900818,1756397434477,-301.87,0.00038904,7]
[381900819,1756397434487,-400.0,0.00038904,7]
[381900820,1756397434497,-400.0,0.00038904,7]
[381900821,1756397434508,-400.0,0.00038904,7]
[381900822,1756397434518,-400.0,0.00038904,7]
[381900823,1756397434527,-400.0,0.00038904,7]
[381900824,1756397434537,-400.0,0.00038904,7]
[381900825,1756397434546,-200.0,0.00038904,7]
[381900826,1756397434556,-2543.0,0.00039,120]
[381900827,1756397434567,-396.76451,0.00039088,30]
[381900828,1756397434577,-378.44,0.00039178,7]
[381900829,1756397434591,-289.12,0.00039178,7]
[381900830,1756397434602,-400.0,0.00039178,7]
[381900831,1756397434612,-154.26,0.00039178,7]
[381900832,1756397434623,-438.57,0.00039178,7]
[381900833,1756397434634,-88.38385257,0.00039178,7]
[381900834,1756397434761,-372.72614743,0.00039178,7]
[381900835,1756397434773,-219.57385257,0.00039178,7]
[381900836,1756397434983,-180.42614743,0.00039178,7]
[381900837,1756397434998,-173.41,0.00039178,7]
[381900838,1756397435009,-82.76396529,0.00039178,7]
[381900839,1756397435020,-71.31603471,0.00039178,7]
[381900840,1756397435030,-268.35088213,0.00039178,7]
[381900841,1756397435046,-131.64911787,0.00039178,7]
[381900842,1756397435055,-167.01,0.00039178,7]
[381900843,1756397435065,-400.0,0.00039178,7]
[381900844,1756397435074,-221.55,0.00039178,7]
[381900845,1756397435083,-400.0,0.00039178,7]
[381900846,1756397435092,-400.0,0.00039178,7]
[381900847,1756397435102,-500.0,0.000392,5]
[381900848,1756397435112,-500.0,0.0003928,5]
[381900849,1756397435122,-396.76451,0.00039288,30]
[381900850,1756397435134,-10.37154196,0.00039412,7]
[381900851,1756397435158,-489.62845804,0.00039412,7]
[381900852,1756397435169,-176.82,0.00039414,2]
[381900853,1756397435179,-173.87,0.00039414,2]
[381900854,1756397435189,-400.0,0.00039452,7]
[381900855,1756397435198,-268.82,0.00039452,7]
[381900856,1756397435208,-400.0,0.00039452,7]
[381900857,1756397435218,-400.0,0.00039452,7]
[381900858,1756397435228,-400.0,0.00039452,7]
[381900859,1756397435239,-400.0,0.00039452,7]
[381900860,1756397435249,-500.0,0.0003946,7]
[381900861,1756397435260,-396.76451,0.00039488,30]
[381900862,1756397435270,-396.76451,0.00039688,30]
[381900863,1756397435280,-400.0,0.00039726,7]
[381900864,1756397435288,-400.0,0.00039726,7]
[381900865,1756397435298,-400.0,0.00039726,7]
[381900866,1756397435307,-400.0,0.00039726,7]
[381900867,1756397435317,-400.0,0.00039726,7]
[381900868,1756397435326,-886.326387,0.00039828,5]
[381900869,1756397435335,-396.76451,0.00039888,30]
[381900870,1756397435345,-212.8282384,0.000399,2]
[381900871,1756397435354,-500.0,0.00039988,7]
[381900872,1756397435363,-252.76,0.00039999,7]
[381900873,1756397435373,-370.36,0.00039999,7]
[381900874,1756397435383,-336.34,0.00039999,7]
[381900875,1756397435392,-50000.0,0.0004,40]
[381900876,1756397435402,-50000.0,0.0004,50]
[381900877,1756397435411,-400.0,0.0004,7]
[381900878,1756397435420,-1000.0,0.0004,20]
[381900879,1756397435429,-400.0,0.0004,7]
[381900880,1756397435438,-400.0,0.0004,7]
[381900881,1756397435447,-400.0,0.0004,7]
[381900882,1756397435456,-400.0,0.0004,7]
[381900883,1756397435465,-589.6,0.0004,30]
[381900884,1756397435474,-609.54,0.00040009,30]
[381900885,1756397435484,-396.76451,0.00040088,30]
[381900886,1756397435493,-23959.9150149,0.00040201,3]
[381900887,1756397435502,-400.0,0.00040272,7]
[381900888,1756397435512,-400.0,0.00040272,7]
[381900889,1756397435520,-400.0,0.00040272,7]
[381900890,1756397435529,-400.0,0.00040272,7]
[381900891,1756397435538,-400.0,0.00040272,7]
[381900892,1756397435547,-400.0,0.00040272,7]
[381900893,1756397435556,-400.0,0.00040272,7]
[381900894,1756397435565,-500.0,0.00040272,7]
[381900895,1756397435575,-400.0,0.00040272,7]
[381900896,1756397435585,-400.0,0.00040272,7]
[381900897,1756397435595,-400.0,0.00040272,7]
[381900898,1756397435604,-400.0,0.00040272,7]
[381900899,1756397435613,-400.0,0.00040272,7]
[381900900,1756397435622,-400.0,0.00040272,7]
[381900901,1756397435632,-400.0,0.00040272,7]
[381900902,1756397435642,-230.44,0.00040272,7]
[381900903,1756397435651,-400.0,0.00040272,7]
[381900904,1756397435660,-400.0,0.00040272,7]
[381900905,1756397435670,-400.0,0.00040272,7]
[381900906,1756397435679,-209.74,0.00040272,7]
[381900907,1756397435688,-400.0,0.00040272,7]
[381900908,1756397435697,-400.0,0.00040272,7]
[381900909,1756397435708,-400.0,0.00040273,7]
[381900910,1756397435717,-400.0,0.00040273,7]
[381900911,1756397435727,-400.0,0.00040273,7]
[381900912,1756397435736,-400.0,0.00040273,7]
[381900913,1756397435746,-400.0,0.00040273,7]
[381900914,1756397435755,-396.76451,0.00040288,30]
[381900915,1756397435765,-396.76451,0.00040488,30]
[381900916,1756397435774,-400.0,0.00040546,7]
[381900917,1756397435784,-400.0,0.00040546,7]
[381900918,1756397435793,-400.0,0.00040546,7]
[381900919,1756397435803,-400.0,0.00040546,7]
[381900920,1756397435812,-400.0,0.00040546,7]
[381900921,1756397435822,-400.0,0.00040546,7]
[381900922,1756397435832,-400.0,0.00040546,7]
[381900923,1756397435841,-400.0,0.00040546,7]
[381900924,1756397435850,-400.0,0.00040546,7]
[381900925,1756397435859,-400.0,0.00040546,7]
[381900926,1756397435869,-500.0,0.00040546,7]
[381900927,1756397435878,-400.0,0.00040546,7]
[381900928,1756397435887,-400.0,0.00040546,7]
[381900929,1756397435896,-400.0,0.00040546,7]
[381900930,1756397435906,-400.0,0.00040546,7]
[381900931,1756397435915,-400.0,0.00040547,7]
[381900932,1756397435924,-400.0,0.00040547,7]
[381900933,1756397435934,-488.92,0.00040547,7]
[381900934,1756397435943,-400.0,0.00040547,7]
[381900935,1756397435952,-380.18754763,0.00040547,7]
[381900936,1756397435963,-1000.0,0.00040645,2]
[381900937,1756397435972,-396.76451,0.00040688,30]
[381900938,1756397435982,-4881.76467961,0.00040721,15]
[381900939,1756397435992,-370.11078236,0.00040786,36]
[381900940,1756397436001,-400.0,0.0004082,7]
[381900941,1756397436010,-400.0,0.0004082,7]
[381900942,1756397436019,-182.11,0.0004082,7]
[381900943,1756397436029,-409.75,0.0004082,7]
[381900944,1756397436039,-326.59,0.0004082,7]
[381900945,1756397436049,-400.0,0.0004082,7]
[381900946,1756397436059,-356.81,0.0004082,7]
[381900947,1756397436069,-299.49,0.0004082,7]
[381900948,1756397436078,-312.0,0.0004082,7]
[381900949,1756397436088,-400.0,0.0004082,7]
[381900950,1756397436097,-516.56,0.0004082,7]
[381900951,1756397436106,-400.0,0.0004082,7]
[381900952,1756397436115,-400.0,0.0004082,7]
[381900953,1756397436125,-400.0,0.0004082,7]
[381900954,1756397436136,-400.0,0.00040821,7]
[381900955,1756397436147,-258.25,0.00040821,7]